[Event "*** Titled Tuesday Blitz"]
[Site "Chess.com"]
[Date "2019.04.02"]
[Round "1"]
[White "indfraeng"]
[Black "LimeInTheCoconut"]
[Result "0-1"]
[WhiteElo "1981"]
[BlackElo "2506"]
[TimeControl "180+2"]
[EndTime "14:11:05 PDT"]
[Termination "LimeInTheCoconut won by checkmate"]

1. d4 {[%clk 0:03:01.2]} 1... Nf6 {[%clk 0:03:00.7]} 2. c4 {[%clk 0:03:01.7]}
2... e6 {[%clk 0:03:01.8]} 3. g3 {[%clk 0:03:01.2]} 3... d5 {[%clk 0:03:02.3]}
4. Nf3 {[%clk 0:03:01.1]} 4... Be7 {[%clk 0:03:03.1]} 5. Bg2 {[%clk 0:03:01.8]}
5... O-O {[%clk 0:03:04.6]} 6. O-O {[%clk 0:03:02]} 6... dxc4 {[%clk 0:03:06.3]}
7. Qc2 {[%clk 0:02:55]} 7... a6 {[%clk 0:03:06.8]} 8. a4 {[%clk 0:02:53.6]} 8...
Bd7 {[%clk 0:03:07.3]} 9. Qxc4 {[%clk 0:02:53.1]} 9... Bc6 {[%clk 0:03:08.6]}
10. Nc3 {[%clk 0:02:38.6]} 10... a5 {[%clk 0:03:06.2]} 11. Bg5 {[%clk
0:02:33.9]} 11... Bxf3 {[%clk 0:03:04.4]} 12. Bxf3 {[%clk 0:02:30.1]} 12... c6
{[%clk 0:03:05.7]} 13. Bxf6 {[%clk 0:02:22]} 13... Bxf6 {[%clk 0:03:06.6]} 14.
Rfd1 {[%clk 0:02:21.9]} 14... Nd7 {[%clk 0:03:06.3]} 15. Ne4 {[%clk 0:02:22.4]}
15... Be7 {[%clk 0:03:06.4]} 16. Nc5 {[%clk 0:02:12.9]} 16... Nxc5 {[%clk
0:02:57.8]} 17. dxc5 {[%clk 0:02:12.6]} 17... Qc7 {[%clk 0:02:59.4]} 18. b4
{[%clk 0:02:07.2]} 18... axb4 {[%clk 0:02:58.4]} 19. Qxb4 {[%clk 0:02:08.2]}
19... Rfd8 {[%clk 0:02:35]} 20. Rdb1 {[%clk 0:01:55.9]} 20... Ra7 {[%clk
0:02:32.1]} 21. a5 {[%clk 0:01:44.1]} 21... Qe5 {[%clk 0:02:27.1]} 22. Qb6
{[%clk 0:01:43.9]} 22... Qxc5 {[%clk 0:02:18.9]} 23. a6 {[%clk 0:01:38]} 23...
Qxb6 {[%clk 0:01:45.4]} 24. Rxb6 {[%clk 0:01:36.9]} 24... bxa6 {[%clk
0:01:45.9]} 25. Bxc6 {[%clk 0:01:09.2]} 25... a5 {[%clk 0:01:42.9]} 26. Ra4
{[%clk 0:01:02.3]} 26... g6 {[%clk 0:01:30.7]} 27. Rc4 {[%clk 0:00:54.5]} 27...
Rc7 {[%clk 0:01:20]} 28. Ra4 {[%clk 0:00:38.2]} 28... Bb4 {[%clk 0:01:14.6]} 29.
Bf3 {[%clk 0:00:37.7]} 29... h5 {[%clk 0:01:07]} 30. h4 {[%clk 0:00:36.3]} 30...
Kg7 {[%clk 0:01:07.8]} 31. Ra1 {[%clk 0:00:33.6]} 31... Rd2 {[%clk 0:01:05.1]}
32. Rb1 {[%clk 0:00:32.3]} 32... Rcc2 {[%clk 0:01:02.4]} 33. Ra1 {[%clk
0:00:28.9]} 33... Ra2 {[%clk 0:01:02.7]} 34. Rb1 {[%clk 0:00:27.8]} 34... Rac2
{[%clk 0:00:54.5]} 35. Ra1 {[%clk 0:00:27.4]} 35... Rc4 {[%clk 0:00:54]} 36. Rb1
{[%clk 0:00:27.4]} 36... Rcd4 {[%clk 0:00:54.8]} 37. Rb3 {[%clk 0:00:25.1]}
37... Rd1+ {[%clk 0:00:51.8]} 38. Kg2 {[%clk 0:00:25.4]} 38... Ra1 {[%clk
0:00:51.4]} 39. Rb7 {[%clk 0:00:22.1]} 39... Rdd1 {[%clk 0:00:47.4]} 40. Bc6
{[%clk 0:00:21.3]} 40... Rd8 {[%clk 0:00:34.4]} 41. Bf3 {[%clk 0:00:20.3]} 41...
Kf6 {[%clk 0:00:30.6]} 42. Bc6 {[%clk 0:00:19]} 42... Kg7 {[%clk 0:00:29.3]} 43.
Bf3 {[%clk 0:00:19.7]} 43... Rad1 {[%clk 0:00:29.6]} 44. Bc6 {[%clk 0:00:20.2]}
44... R1d6 {[%clk 0:00:30.3]} 45. Bf3 {[%clk 0:00:19.5]} 45... R8d7 {[%clk
0:00:31.2]} 46. Rb8 {[%clk 0:00:20]} 46... Rd8 {[%clk 0:00:31.5]} 47. Rb7 {[%clk
0:00:21]} 47... R6d7 {[%clk 0:00:32.9]} 48. Rb5 {[%clk 0:00:21.6]} 48... Ra7
{[%clk 0:00:33.9]} 49. Be4 {[%clk 0:00:19.6]} 49... Be7 {[%clk 0:00:33.5]} 50.
Rb1 {[%clk 0:00:18.2]} 50... a4 {[%clk 0:00:34.7]} 51. Ra1 {[%clk 0:00:19.4]}
51... a3 {[%clk 0:00:36.1]} 52. Ra2 {[%clk 0:00:20.8]} 52... Bf6 {[%clk
0:00:36.3]} 53. Rb3 {[%clk 0:00:20.5]} 53... Be7 {[%clk 0:00:35.5]} 54. Rc2
{[%clk 0:00:20.5]} 54... a2 {[%clk 0:00:31.1]} 55. Rc1 {[%clk 0:00:16.6]} 55...
a1=Q {[%clk 0:00:30.3]} 56. Rxa1 {[%clk 0:00:18.5]} 56... Rxa1 {[%clk
0:00:31.7]} 57. Rb7 {[%clk 0:00:18.8]} 57... Bf6 {[%clk 0:00:32.1]} 58. Bc6
{[%clk 0:00:19.7]} 58... Rc1 {[%clk 0:00:31.9]} 59. Ba4 {[%clk 0:00:19.9]} 59...
Ra1 {[%clk 0:00:28.9]} 60. Bc6 {[%clk 0:00:20.4]} 60... Ra6 {[%clk 0:00:29.1]}
61. Bb5 {[%clk 0:00:20.8]} 61... Rad6 {[%clk 0:00:29.8]} 62. Ba4 {[%clk
0:00:21.6]} 62... Rd5 {[%clk 0:00:30.6]} 63. Bc6 {[%clk 0:00:21.9]} 63... Rf5
{[%clk 0:00:31.5]} 64. Ba4 {[%clk 0:00:20.9]} 64... Bd4 {[%clk 0:00:31.1]} 65.
e3 {[%clk 0:00:20.3]} 65... Bf6 {[%clk 0:00:32.2]} 66. Bc6 {[%clk 0:00:20]}
66... Rc5 {[%clk 0:00:33.2]} 67. Ba4 {[%clk 0:00:20.6]} 67... Ra5 {[%clk
0:00:33]} 68. Bc6 {[%clk 0:00:20.7]} 68... Ra2 {[%clk 0:00:32.9]} 69. Kf3 {[%clk
0:00:21.3]} 69... Kf8 {[%clk 0:00:28.4]} 70. Bb5 {[%clk 0:00:17.7]} 70... Rdd2
{[%clk 0:00:27.7]} 71. Rb8+ {[%clk 0:00:18.8]} 71... Kg7 {[%clk 0:00:28.6]} 72.
Rb7 {[%clk 0:00:19.3]} 72... Rxf2+ {[%clk 0:00:29.4]} 73. Ke4 {[%clk 0:00:20.9]}
73... Bc3 {[%clk 0:00:25.9]} 74. Be8 {[%clk 0:00:21.6]} 74... Kf8 {[%clk
0:00:25.1]} 75. Bb5 {[%clk 0:00:21.7]} 75... Rad2 {[%clk 0:00:25.6]} 76. Rc7
{[%clk 0:00:22.1]} 76... f5# {[%clk 0:00:25.9]} 0-1

[Event "*** Titled Tuesday Blitz"]
[Site "Chess.com"]
[Date "2019.04.02"]
[Round "1"]
[White "Yoshkinkot"]
[Black "Vusatiuk_Vladimir"]
[Result "1-0"]
[WhiteElo "2543"]
[BlackElo "2173"]
[TimeControl "180+2"]
[EndTime "14:11:09 PDT"]
[Termination "Yoshkinkot won by checkmate"]

1. e4 {[%clk 0:03:01.9]} 1... c5 {[%clk 0:02:59.9]} 2. Nf3 {[%clk 0:03:00.7]}
2... Nc6 {[%clk 0:03:00.9]} 3. Bb5 {[%clk 0:03:01.2]} 3... e6 {[%clk 0:03:00.4]}
4. Bxc6 {[%clk 0:03:01.6]} 4... bxc6 {[%clk 0:03:00.6]} 5. b3 {[%clk 0:03:02.5]}
5... Ne7 {[%clk 0:03:01]} 6. Bb2 {[%clk 0:03:02.5]} 6... d5 {[%clk 0:03:01.7]}
7. e5 {[%clk 0:03:00.2]} 7... Ng6 {[%clk 0:03:01.3]} 8. O-O {[%clk 0:03:01]}
8... Be7 {[%clk 0:03:02]} 9. Re1 {[%clk 0:03:01.5]} 9... O-O {[%clk 0:03:02.2]}
10. d3 {[%clk 0:03:00.9]} 10... f5 {[%clk 0:03:02.3]} 11. exf6 {[%clk
0:02:51.7]} 11... Bxf6 {[%clk 0:03:01.6]} 12. Nc3 {[%clk 0:02:30.3]} 12... Qd6
{[%clk 0:02:46.4]} 13. Qc1 {[%clk 0:02:17.8]} 13... Bxc3 {[%clk 0:01:46.5]} 14.
Bxc3 {[%clk 0:02:17.6]} 14... d4 {[%clk 0:01:46.7]} 15. Bd2 {[%clk 0:02:16.4]}
15... Rxf3 {[%clk 0:01:47.4]} 16. gxf3 {[%clk 0:02:15.5]} 16... Nh4 {[%clk
0:01:48.2]} 17. Re4 {[%clk 0:00:56.3]} 17... Nxf3+ {[%clk 0:01:43.2]} 18. Kg2
{[%clk 0:00:56.8]} 18... e5 {[%clk 0:00:24.1]} 19. Kxf3 {[%clk 0:00:56.7]} 19...
Be6 {[%clk 0:00:25.7]} 20. Kg2 {[%clk 0:00:44.6]} 20... Bd5 {[%clk 0:00:25]} 21.
f3 {[%clk 0:00:43.4]} 21... Rf8 {[%clk 0:00:25.2]} 22. Qe1 {[%clk 0:00:42.9]}
22... Qg6+ {[%clk 0:00:23.6]} 23. Qg3 {[%clk 0:00:43.5]} 23... Qh5 {[%clk
0:00:20.4]} 24. Rf1 {[%clk 0:00:37.6]} 24... Bxe4 {[%clk 0:00:20.2]} 25. dxe4
{[%clk 0:00:37.2]} 25... c4 {[%clk 0:00:20.2]} 26. bxc4 {[%clk 0:00:37.8]} 26...
Qf7 {[%clk 0:00:20]} 27. Qxe5 {[%clk 0:00:32.5]} 27... Qxc4 {[%clk 0:00:21.5]}
28. Rf2 {[%clk 0:00:34]} 28... c5 {[%clk 0:00:21.5]} 29. Qd5+ {[%clk 0:00:33.1]}
29... Qxd5 {[%clk 0:00:22.9]} 30. exd5 {[%clk 0:00:34.8]} 30... Rd8 {[%clk
0:00:22.8]} 31. Re2 {[%clk 0:00:35.7]} 31... Rxd5 {[%clk 0:00:23.9]} 32. Re7
{[%clk 0:00:36.9]} 32... c4 {[%clk 0:00:24.9]} 33. Rxa7 {[%clk 0:00:37.6]} 33...
c3 {[%clk 0:00:26.2]} 34. Bf4 {[%clk 0:00:36.5]} 34... g5 {[%clk 0:00:27.2]} 35.
Bc1 {[%clk 0:00:34.8]} 35... h6 {[%clk 0:00:18.2]} 36. Ra4 {[%clk 0:00:30.7]}
36... Kf7 {[%clk 0:00:16.6]} 37. Rc4 {[%clk 0:00:30.8]} 37... Kg6 {[%clk
0:00:09.3]} 38. a4 {[%clk 0:00:31.5]} 38... Kf5 {[%clk 0:00:09.8]} 39. Kf2
{[%clk 0:00:30.5]} 39... Ke5 {[%clk 0:00:10.9]} 40. Ke2 {[%clk 0:00:30.8]} 40...
Rd8 {[%clk 0:00:09.6]} 41. Kd3 {[%clk 0:00:27.6]} 41... h5 {[%clk 0:00:09.1]}
42. Rc5+ {[%clk 0:00:27.9]} 42... Kd6 {[%clk 0:00:08.4]} 43. Rxg5 {[%clk
0:00:28]} 43... Rf8 {[%clk 0:00:07.7]} 44. f4 {[%clk 0:00:29.2]} 44... h4 {[%clk
0:00:07.2]} 45. Kxd4 {[%clk 0:00:30.2]} 45... Ra8 {[%clk 0:00:08.3]} 46. Kxc3
{[%clk 0:00:31.2]} 46... Rxa4 {[%clk 0:00:09.4]} 47. Rh5 {[%clk 0:00:32.8]}
47... Ra1 {[%clk 0:00:09.8]} 48. Kd2 {[%clk 0:00:31.7]} 48... Ra4 {[%clk
0:00:09.7]} 49. Rxh4 {[%clk 0:00:32.6]} 49... Ke7 {[%clk 0:00:11]} 50. Bb2
{[%clk 0:00:33.7]} 50... Ra2 {[%clk 0:00:10.7]} 51. Be5 {[%clk 0:00:34.3]} 51...
Ke6 {[%clk 0:00:11.6]} 52. Kd3 {[%clk 0:00:35.4]} 52... Ra3+ {[%clk 0:00:11.8]}
53. c3 {[%clk 0:00:36.6]} 53... Ra1 {[%clk 0:00:12.6]} 54. Rh5 {[%clk
0:00:37.8]} 54... Rf1 {[%clk 0:00:12.6]} 55. c4 {[%clk 0:00:37.3]} 55... Rd1+
{[%clk 0:00:13.3]} 56. Kc3 {[%clk 0:00:38.7]} 56... Rc1+ {[%clk 0:00:14.4]} 57.
Kb4 {[%clk 0:00:40.1]} 57... Rb1+ {[%clk 0:00:15.6]} 58. Kc5 {[%clk 0:00:41.5]}
58... Rb7 {[%clk 0:00:16.1]} 59. f5+ {[%clk 0:00:42.2]} 59... Kxe5 {[%clk
0:00:16.8]} 60. Kc6 {[%clk 0:00:41.9]} 60... Rb2 {[%clk 0:00:16.5]} 61. c5
{[%clk 0:00:42.7]} 61... Rc2 {[%clk 0:00:16.2]} 62. Kb6 {[%clk 0:00:43.9]} 62...
Kd5 {[%clk 0:00:17.5]} 63. f6+ {[%clk 0:00:45]} 63... Ke6 {[%clk 0:00:18.9]} 64.
Rh6 {[%clk 0:00:46.3]} 64... Kd7 {[%clk 0:00:16.9]} 65. f7 {[%clk 0:00:43.5]}
65... Rf2 {[%clk 0:00:18]} 66. c6+ {[%clk 0:00:43.4]} 66... Ke7 {[%clk
0:00:16.4]} 67. c7 {[%clk 0:00:41.5]} 67... Rb2+ {[%clk 0:00:17.4]} 68. Ka7
{[%clk 0:00:42.8]} 68... Rc2 {[%clk 0:00:17.6]} 69. Kb7 {[%clk 0:00:44.2]} 69...
Rb2+ {[%clk 0:00:18.9]} 70. Rb6 {[%clk 0:00:45.7]} 70... Re2 {[%clk 0:00:11.7]}
71. c8=Q {[%clk 0:00:45.9]} 71... Kxf7 {[%clk 0:00:12.7]} 72. Qf5+ {[%clk
0:00:46.9]} 72... Ke7 {[%clk 0:00:11.6]} 73. Qc5+ {[%clk 0:00:47.7]} 73... Kd8
{[%clk 0:00:07.8]} 74. Rd6+ {[%clk 0:00:48.4]} 74... Ke8 {[%clk 0:00:09]} 75.
Qh5+ {[%clk 0:00:49.7]} 75... Ke7 {[%clk 0:00:09.1]} 76. Qxe2+ {[%clk
0:00:51.2]} 76... Kxd6 {[%clk 0:00:10.6]} 77. h4 {[%clk 0:00:52.7]} 77... Kd5
{[%clk 0:00:11.8]} 78. h5 {[%clk 0:00:54.4]} 78... Kd4 {[%clk 0:00:13.7]} 79. h6
{[%clk 0:00:56]} 79... Kd5 {[%clk 0:00:15.6]} 80. h7 {[%clk 0:00:57.7]} 80...
Kd6 {[%clk 0:00:16.8]} 81. h8=Q {[%clk 0:00:59.3]} 81... Kd5 {[%clk 0:00:18.7]}
82. Qd8+ {[%clk 0:01:00.8]} 82... Kc5 {[%clk 0:00:18.9]} 83. Qc2+ {[%clk
0:01:02.4]} 83... Kb4 {[%clk 0:00:20.8]} 84. Qb6+ {[%clk 0:01:03.7]} 84... Ka3
{[%clk 0:00:22.3]} 85. Qcb3# {[%clk 0:01:04.1]} 1-0

[Event "*** Titled Tuesday Blitz"]
[Site "Chess.com"]
[Date "2019.04.02"]
[Round "1"]
[White "GMJimKnopf"]
[Black "IIIlllII1llIl"]
[Result "0-1"]
[WhiteElo "2391"]
[BlackElo "2802"]
[TimeControl "180+2"]
[EndTime "14:11:14 PDT"]
[Termination "IIIlllII1llIl won by resignation"]

1. e4 {[%clk 0:03:01.9]} 1... e5 {[%clk 0:02:42.5]} 2. Nf3 {[%clk 0:03:02.4]}
2... Nc6 {[%clk 0:02:43]} 3. Bc4 {[%clk 0:03:03.9]} 3... Bc5 {[%clk 0:02:43.4]}
4. c3 {[%clk 0:03:05.1]} 4... Nf6 {[%clk 0:02:44.2]} 5. d3 {[%clk 0:03:06.7]}
5... d6 {[%clk 0:02:44.5]} 6. Bb3 {[%clk 0:03:07]} 6... a6 {[%clk 0:02:45.2]} 7.
Nbd2 {[%clk 0:03:07.8]} 7... h6 {[%clk 0:02:45.9]} 8. Qe2 {[%clk 0:03:09.2]}
8... O-O {[%clk 0:02:39.9]} 9. h3 {[%clk 0:03:08.7]} 9... d5 {[%clk 0:02:39.8]}
10. Bc2 {[%clk 0:03:07.6]} 10... Be6 {[%clk 0:02:28.8]} 11. Nf1 {[%clk
0:03:08.3]} 11... b5 {[%clk 0:02:26.5]} 12. Ng3 {[%clk 0:03:04.2]} 12... dxe4
{[%clk 0:02:26.9]} 13. Nxe4 {[%clk 0:03:04.1]} 13... Nxe4 {[%clk 0:02:27.2]} 14.
Qxe4 {[%clk 0:03:05.2]} 14... Bd5 {[%clk 0:02:28.2]} 15. Qe2 {[%clk 0:03:04.2]}
15... e4 {[%clk 0:02:16.4]} 16. dxe4 {[%clk 0:03:02.1]} 16... Bc4 {[%clk
0:02:17]} 17. Qd2 {[%clk 0:02:57.7]} 17... Qf6 {[%clk 0:01:43.1]} 18. Qf4 {[%clk
0:02:40.8]} 18... Nb4 {[%clk 0:01:34.2]} 19. Qxf6 {[%clk 0:02:16.3]} 19... Nxc2+
{[%clk 0:01:34.5]} 20. Kd2 {[%clk 0:02:17.4]} 20... gxf6 {[%clk 0:01:35.6]} 21.
Kxc2 {[%clk 0:02:18.5]} 21... Rad8 {[%clk 0:01:36.4]} 22. Nd4 {[%clk 0:02:02.3]}
22... Bxd4 {[%clk 0:01:28.9]} 23. cxd4 {[%clk 0:02:04.2]} 23... Rxd4 {[%clk
0:01:30.8]} 24. f3 {[%clk 0:01:06.4]} 24... Bd3+ {[%clk 0:01:30.5]} 25. Kc3
{[%clk 0:01:06.3]} 25... Rfd8 {[%clk 0:01:28.8]} 26. b3 {[%clk 0:00:58.1]} 26...
f5 {[%clk 0:00:29.3]} 27. Be3 {[%clk 0:00:50.6]} 27... R4d7 {[%clk 0:00:28]} 28.
e5 {[%clk 0:00:32.2]} 28... a5 {[%clk 0:00:27.4]} 29. Rad1 {[%clk 0:00:29.9]}
29... b4+ {[%clk 0:00:28]} 30. Kb2 {[%clk 0:00:31.2]} 30... h5 {[%clk
0:00:27.5]} 31. Rd2 {[%clk 0:00:30]} 31... Bb5 {[%clk 0:00:26.3]} 32. Rxd7
{[%clk 0:00:27.8]} 32... Rxd7 {[%clk 0:00:26.9]} 33. Re1 {[%clk 0:00:27]} 33...
Kf8 {[%clk 0:00:25]} 34. a3 {[%clk 0:00:26]} 34... bxa3+ {[%clk 0:00:24.5]} 35.
Kxa3 {[%clk 0:00:27.9]} 35... Ke7 {[%clk 0:00:25.9]} 36. Kb2 {[%clk 0:00:27.4]}
36... Ke6 {[%clk 0:00:26.3]} 37. Bf4 {[%clk 0:00:26.3]} 37... c5 {[%clk
0:00:23.6]} 38. Ra1 {[%clk 0:00:25.7]} 38... Ra7 {[%clk 0:00:22.6]} 39. Be3
{[%clk 0:00:25.7]} 39... Kxe5 {[%clk 0:00:22.5]} 40. Bxc5 {[%clk 0:00:26.2]}
40... Ra6 {[%clk 0:00:23.9]} 41. Kc3 {[%clk 0:00:24.1]} 41... Kf4 {[%clk
0:00:24]} 42. Re1 {[%clk 0:00:22.5]} 42... Kg3 {[%clk 0:00:24.4]} 43. Re5 {[%clk
0:00:23.5]} 43... Kxg2 {[%clk 0:00:22.7]} 44. Rxf5 {[%clk 0:00:24.7]} 44... h4
{[%clk 0:00:23.1]} 45. Rh5 {[%clk 0:00:25.5]} 45... Kxf3 {[%clk 0:00:21.8]} 46.
Rxh4 {[%clk 0:00:25.5]} 46... f5 {[%clk 0:00:22.6]} 47. Rh5 {[%clk 0:00:24.9]}
47... Ke4 {[%clk 0:00:23.7]} 48. Rh4+ {[%clk 0:00:24]} 48... f4 {[%clk
0:00:24.2]} 49. Bf8 {[%clk 0:00:22.1]} 49... Rc6+ {[%clk 0:00:24.3]} 50. Kb2
{[%clk 0:00:22.6]} 50... Bd3 {[%clk 0:00:22.7]} 51. Bh6 {[%clk 0:00:23.2]} 51...
Rf6 {[%clk 0:00:08.6]} 52. Ka3 {[%clk 0:00:22.9]} 52... Bb5 {[%clk 0:00:09.2]}
53. Bg5 {[%clk 0:00:21.3]} 53... Rf5 {[%clk 0:00:10.2]} 54. Bxf4 {[%clk
0:00:21]} 54... Rxf4 {[%clk 0:00:12.1]} 55. Rxf4+ {[%clk 0:00:22.6]} 55... Kxf4
{[%clk 0:00:13.5]} 56. h4 {[%clk 0:00:24.5]} 56... Kg4 {[%clk 0:00:14.6]} 57. h5
{[%clk 0:00:26.4]} 57... Kxh5 {[%clk 0:00:15.9]} 58. Ka2 {[%clk 0:00:28.3]}
58... Kg4 {[%clk 0:00:17.1]} 59. Ka1 {[%clk 0:00:30.2]} 59... Kf4 {[%clk
0:00:18.6]} 60. Ka2 {[%clk 0:00:32.1]} 60... Ke5 {[%clk 0:00:20.1]} 61. Ka1
{[%clk 0:00:34]} 61... Kd4 {[%clk 0:00:21.6]} 62. Ka2 {[%clk 0:00:35.9]} 62...
Kc3 {[%clk 0:00:23]} 63. Ka1 {[%clk 0:00:37.8]} 63... Kb4 {[%clk 0:00:24.4]} 64.
Ka2 {[%clk 0:00:39.7]} 64... Bc6 {[%clk 0:00:25.8]} 65. Ka1 {[%clk 0:00:41.6]}
65... Ka3 {[%clk 0:00:27.3]} 66. Kb1 {[%clk 0:00:42.5]} 66... Bd7 {[%clk
0:00:25]} 67. Ka1 {[%clk 0:00:44.4]} 67... Be6 {[%clk 0:00:16.2]} 68. Kb1 {[%clk
0:00:46.3]} 68... Bf7 {[%clk 0:00:17.1]} 69. Ka1 {[%clk 0:00:48.2]} 69... Bh5
{[%clk 0:00:12.7]} 70. Kb1 {[%clk 0:00:50.1]} 70... Bg4 {[%clk 0:00:13.7]} 71.
Ka1 {[%clk 0:00:52]} 71... Bf3 {[%clk 0:00:13.3]} 72. Kb1 {[%clk 0:00:53.9]}
72... Be4+ {[%clk 0:00:13]} 73. Ka1 {[%clk 0:00:55.8]} 73... Kb4 {[%clk
0:00:14.1]} 74. Kb2 {[%clk 0:00:56.1]} 74... Bf5 {[%clk 0:00:15.2]} 75. Ka1
{[%clk 0:00:55.2]} 75... Kc3 {[%clk 0:00:16.2]} 76. Ka2 {[%clk 0:00:55.3]} 76...
Bc2 {[%clk 0:00:15]} 77. Ka1 {[%clk 0:00:50.7]} 77... Be4 {[%clk 0:00:15.3]} 78.
Ka2 {[%clk 0:00:51.9]} 78... Bf5 {[%clk 0:00:15.8]} 79. Ka1 {[%clk 0:00:52.8]}
79... Be6 {[%clk 0:00:16.8]} 80. Ka2 {[%clk 0:00:53.2]} 80... Bd7 {[%clk
0:00:17.8]} 81. Ka1 {[%clk 0:00:53.8]} 81... Bc6 {[%clk 0:00:18.9]} 82. Ka2
{[%clk 0:00:55]} 82... Bb5 {[%clk 0:00:18.6]} 83. Ka1 {[%clk 0:00:56.2]} 83...
Be8 {[%clk 0:00:14.4]} 84. Ka2 {[%clk 0:00:57.2]} 84... Kb4 {[%clk 0:00:15.1]}
85. Ka1 {[%clk 0:00:57.1]} 85... Bh5 {[%clk 0:00:17]} 86. Ka2 {[%clk 0:00:58.2]}
86... Bg4 {[%clk 0:00:18.9]} 87. Ka1 {[%clk 0:00:59.4]} 87... Be6 {[%clk
0:00:20.7]} 88. Ka2 {[%clk 0:01:00.2]} 88... a4 {[%clk 0:00:21.7]} 89. Kb2
{[%clk 0:00:59.2]} 89... axb3 {[%clk 0:00:22.9]} 90. Ka1 {[%clk 0:01:01]} 90...
Ka3 {[%clk 0:00:23.5]} 91. Kb1 {[%clk 0:01:02.3]} 91... b2 {[%clk 0:00:24.7]}
92. Kc2 {[%clk 0:01:03.4]} 92... Ba2 {[%clk 0:00:25.5]} 93. Kc3 {[%clk
0:01:04.6]} 93... b1=Q {[%clk 0:00:26.7]} 0-1

[Event "*** Titled Tuesday Blitz"]
[Site "Chess.com"]
[Date "2019.04.02"]
[Round "1"]
[White "Miguelito"]
[Black "Karina_Oparina"]
[Result "1-0"]
[WhiteElo "2575"]
[BlackElo "2230"]
[TimeControl "180+2"]
[EndTime "14:11:32 PDT"]
[Termination "Miguelito won on time"]

1. e4 {[%clk 0:02:59.6]} 1... c6 {[%clk 0:02:59.5]} 2. Nf3 {[%clk 0:03:00.4]}
2... d5 {[%clk 0:03:00]} 3. Nc3 {[%clk 0:03:02.1]} 3... dxe4 {[%clk 0:02:57]} 4.
Nxe4 {[%clk 0:03:04]} 4... Nf6 {[%clk 0:02:57.3]} 5. Qe2 {[%clk 0:03:03.8]} 5...
Nxe4 {[%clk 0:02:54.8]} 6. Qxe4 {[%clk 0:03:05.7]} 6... Nd7 {[%clk 0:02:52.7]}
7. Bc4 {[%clk 0:03:04.8]} 7... Nf6 {[%clk 0:02:52.9]} 8. Ne5 {[%clk 0:03:05.8]}
8... e6 {[%clk 0:02:44.3]} 9. Qe2 {[%clk 0:03:06.5]} 9... Bc5 {[%clk 0:02:35.1]}
10. O-O {[%clk 0:02:55.1]} 10... O-O {[%clk 0:02:34.3]} 11. c3 {[%clk
0:02:54.3]} 11... Nd7 {[%clk 0:02:14.3]} 12. d4 {[%clk 0:02:40.3]} 12... Nxe5
{[%clk 0:02:14.1]} 13. dxe5 {[%clk 0:02:42.2]} 13... Be7 {[%clk 0:02:13.8]} 14.
Rd1 {[%clk 0:02:38.1]} 14... Qc7 {[%clk 0:02:14.1]} 15. Rd3 {[%clk 0:02:38.2]}
15... b5 {[%clk 0:02:11.5]} 16. Bb3 {[%clk 0:02:38.3]} 16... Rd8 {[%clk
0:02:06.9]} 17. Rh3 {[%clk 0:02:37.2]} 17... g6 {[%clk 0:01:53.9]} 18. Bc2
{[%clk 0:02:29.9]} 18... Bf8 {[%clk 0:01:39.8]} 19. Bg5 {[%clk 0:02:27.3]} 19...
Rd5 {[%clk 0:01:39.9]} 20. Bf6 {[%clk 0:02:23.8]} 20... Bg7 {[%clk 0:01:38.9]}
21. Qe3 {[%clk 0:02:16.6]} 21... h5 {[%clk 0:01:30.6]} 22. Be4 {[%clk
0:02:04.7]} 22... Rxe5 {[%clk 0:01:08.3]} 23. Bxe5 {[%clk 0:02:04.1]} 23... Qxe5
{[%clk 0:01:08.5]} 24. Bxc6 {[%clk 0:02:01.4]} 24... Qxe3 {[%clk 0:01:07.5]} 25.
fxe3 {[%clk 0:02:03.3]} 25... Rb8 {[%clk 0:01:09]} 26. Rd1 {[%clk 0:02:02.7]}
26... Bb7 {[%clk 0:01:01.1]} 27. Bxb7 {[%clk 0:01:54.4]} 27... Rxb7 {[%clk
0:01:01.6]} 28. Rd8+ {[%clk 0:01:53.8]} 28... Kh7 {[%clk 0:01:01.8]} 29. Rh4
{[%clk 0:01:50.7]} 29... Bf6 {[%clk 0:00:58.4]} 30. Rhd4 {[%clk 0:01:45.8]}
30... Bxd8 {[%clk 0:00:57.8]} 31. Rxd8 {[%clk 0:01:47.7]} 31... b4 {[%clk
0:00:52.1]} 32. c4 {[%clk 0:01:46.3]} 32... b3 {[%clk 0:00:52.4]} 33. a3 {[%clk
0:01:45.7]} 33... Rc7 {[%clk 0:00:51.9]} 34. Rd3 {[%clk 0:01:44.7]} 34... Rxc4
{[%clk 0:00:50.3]} 35. Rxb3 {[%clk 0:01:45.1]} 35... Kg7 {[%clk 0:00:47.1]} 36.
Rb7 {[%clk 0:01:43.4]} 36... Rc1+ {[%clk 0:00:47.5]} 37. Kf2 {[%clk 0:01:44]}
37... Rc2+ {[%clk 0:00:46.2]} 38. Kf3 {[%clk 0:01:44.9]} 38... a5 {[%clk
0:00:45.9]} 39. b3 {[%clk 0:01:40.5]} 39... Rb2 {[%clk 0:00:43.1]} 40. a4 {[%clk
0:01:40.9]} 40... h4 {[%clk 0:00:31.4]} 41. Rb5 {[%clk 0:01:38]} 41... Kf6
{[%clk 0:00:30.2]} 42. h3 {[%clk 0:01:37.9]} 42... g5 {[%clk 0:00:29.4]} 43. g3
{[%clk 0:01:38.5]} 43... hxg3 {[%clk 0:00:29.5]} 44. Kxg3 {[%clk 0:01:40.4]}
44... e5 {[%clk 0:00:26.4]} 45. e4 {[%clk 0:01:36.2]} 45... Rb1 {[%clk
0:00:24.9]} 46. Rb6+ {[%clk 0:01:35.3]} 46... Kg7 {[%clk 0:00:24.6]} 47. Kg4
{[%clk 0:01:36.6]} 47... f6 {[%clk 0:00:24.1]} 48. Kf5 {[%clk 0:01:34.9]} 48...
Rf1+ {[%clk 0:00:21.7]} 49. Ke6 {[%clk 0:01:36.1]} 49... Rb1 {[%clk 0:00:22.1]}
50. Rb7+ {[%clk 0:01:35.1]} 50... Kg6 {[%clk 0:00:22.4]} 51. Rf7 {[%clk
0:01:34.2]} 51... Rf1 {[%clk 0:00:22.7]} 52. Rb7 {[%clk 0:01:26.8]} 52... Rf3
{[%clk 0:00:22.1]} 53. Rf7 {[%clk 0:01:20.4]} 53... Rf4 {[%clk 0:00:19]} 54. Ke7
{[%clk 0:01:19]} 54... Rf3 {[%clk 0:00:18.1]} 55. Rf8 {[%clk 0:01:17.9]} 55...
Rf4 {[%clk 0:00:18.2]} 56. Rg8+ {[%clk 0:01:18.7]} 56... Kh7 {[%clk 0:00:18.3]}
57. Kf7 {[%clk 0:01:16.4]} 57... Rxe4 {[%clk 0:00:14.6]} 58. Rg7+ {[%clk
0:01:17.7]} 58... Kh6 {[%clk 0:00:14.9]} 59. Rg8 {[%clk 0:01:19.2]} 59... Kh7
{[%clk 0:00:15.8]} 60. Rg7+ {[%clk 0:01:20.5]} 60... Kh6 {[%clk 0:00:16.8]} 61.
Rg6+ {[%clk 0:01:20.9]} 61... Kh5 {[%clk 0:00:17.3]} 62. Rg8 {[%clk 0:01:18.4]}
62... Kh4 {[%clk 0:00:17]} 63. Kxf6 {[%clk 0:01:16.7]} 63... Rb4 {[%clk
0:00:17.6]} 64. Rxg5 {[%clk 0:01:16]} 64... Rb6+ {[%clk 0:00:17.6]} 65. Kf5
{[%clk 0:01:17]} 65... Rxb3 {[%clk 0:00:18.3]} 66. Rg4+ {[%clk 0:01:01.2]} 66...
Kxh3 {[%clk 0:00:17.9]} 67. Re4 {[%clk 0:01:02.8]} 67... Rb4 {[%clk 0:00:17.4]}
68. Kxe5 {[%clk 0:00:55.2]} 68... Rb8 {[%clk 0:00:14.2]} 69. Kd5 {[%clk
0:00:54.4]} 69... Kg3 {[%clk 0:00:14.2]} 70. Kc6 {[%clk 0:00:52.6]} 70... Kf3
{[%clk 0:00:14.5]} 71. Re5 {[%clk 0:00:54.1]} 71... Kf4 {[%clk 0:00:14.3]} 72.
Rxa5 {[%clk 0:00:54.9]} 72... Ke4 {[%clk 0:00:14.1]} 73. Rh5 {[%clk 0:00:54.5]}
73... Rb1 {[%clk 0:00:11.4]} 74. a5 {[%clk 0:00:55.2]} 74... Rc1+ {[%clk
0:00:11.6]} 75. Kb6 {[%clk 0:00:53.4]} 75... Kd4 {[%clk 0:00:09.2]} 76. a6
{[%clk 0:00:54.7]} 76... Rg1 {[%clk 0:00:08.4]} 77. Rc5 {[%clk 0:00:50.7]} 77...
Rg2 {[%clk 0:00:06.4]} 78. a7 {[%clk 0:00:49.8]} 78... Rg6+ {[%clk 0:00:06.4]}
79. Rc6 {[%clk 0:00:50.6]} 79... Rg8 {[%clk 0:00:05.6]} 80. Kb7 {[%clk
0:00:51.6]} 80... Kd5 {[%clk 0:00:06.3]} 81. Rc8 {[%clk 0:00:51.6]} 81... Rg7+
{[%clk 0:00:06.9]} 82. Rc7 {[%clk 0:00:52.8]} 1-0